bitfinex/quotes_SOLUSD_20240811
["timestamp","ask_amount","ask_price","bid_price","bid_amount"]
[1723360462100,15.7062,156.35,156.27,1.65599574]
[1723360462289,9.72,156.3,156.27,1.65599574]
[1723360463487,9.72,156.33,156.28,0.12549]
[1723360463692,9.72,156.33,156.28,0.25098]
[1723360463896,9.72,156.33,156.29,0.25098]
[1723360464802,9.72,156.31,156.28,20.12549]
[1723360465496,6.3955,156.36,156.29,1.27947976]
[1723360465699,9.72,156.32,156.29,1.27947976]
[1723360466323,9.72,156.3,156.28,20.0]
[1723360466606,6.3962,156.35,156.28,21.27952797]
[1723360466814,9.72,156.31,156.28,21.27952797]
[1723360467011,6.3962,156.35,156.28,21.27952797]
[1723360467216,9.72,156.31,156.28,21.27952797]
[1723360468816,6.3953,156.37,156.29,0.12549]
[1723360469020,9.72,156.32,156.29,0.12549]
[1723360469506,9.72,156.32,156.28,20.0]
[1723360470994,9.72,156.32,156.29,1.27951937]
[1723360471715,11.53157577,156.37,156.29,1.27951937]
[1723360471896,9.72,156.33,156.3,1.65579658]
[1723360473493,9.72,156.33,156.3,1.40481658]
[1723360473700,9.72,156.33,156.25,9.72]
[1723360473701,9.72,156.33,156.29,20.0]
[1723360473915,9.72,156.33,156.28,0.25098]
[1723360474101,9.72,156.33,156.29,0.12549]
[1723360474825,9.72,156.36,156.31,0.12549]
[1723360475008,9.72,156.35,156.31,20.50196]
[1723360477308,9.72,156.35,156.31,20.37647]
[1723360478115,9.72,156.35,156.32,1.27919686]
[1723360479433,9.72,156.35,156.33,1.27919758]
[1723360480613,9.72,156.35,156.32,1.27919109]
[1723360480937,9.72,156.35,156.33,1.27918988]
[1723360481640,0.842056,156.39,156.33,1.27918988]
[1723360481840,9.72,156.38,156.33,1.27918988]
[1723360482008,9.72,156.38,156.33,21.27918988]
[1723360486154,9.72,156.38,156.33,20.0]
[1723360486364,9.72,156.36,156.33,20.0]
[1723360486567,9.72,156.36,156.31,20.37647]
[1723360486754,9.72,156.36,156.32,1.27916623]
[1723360487067,9.72,156.36,156.33,1.27916653]
[1723360487248,9.72,156.36,156.31,20.37647]
[1723360487850,0.842056,156.39,156.32,1.27917495]
[1723360488162,9.72,156.36,156.32,1.27917495]
[1723360488551,9.72,156.36,156.31,20.37647]
[1723360489152,0.842056,156.39,156.32,1.2791685]
[1723360489339,9.72,156.35,156.32,1.2791685]
[1723360490483,0.842056,156.39,156.32,1.2791685]
[1723360490684,9.72,156.36,156.32,1.2791685]
[1723360491051,9.72,156.36,156.33,1.27921209]
[1723360491568,9.72,156.36,156.31,20.37647]
[1723360493870,9.72,156.36,156.32,1.27915356]
[1723360498075,9.72,156.36,156.31,20.37647]
[1723360498286,9.72,156.34,156.31,20.0]
[1723360498973,9.72,156.32,156.27,20.0]
[1723360499154,9.72,156.32,156.28,0.12549]
[1723360499775,9.72,156.32,156.28,0.37647]
[1723360500280,9.72,156.32,156.28,45.37647]
[1723360500470,9.72,156.32,156.29,20.0]
[1723360500655,9.72,156.33,156.29,20.0]
[1723360502056,9.72,156.33,156.28,0.37647]
[1723360502784,15.1424,156.38,156.29,1.40495399]
[1723360502962,9.72,156.35,156.3,1.65578744]
[1723360503162,9.72,156.34,156.3,0.25098]
[1723360503363,9.72,156.34,156.29,20.0]
[1723360503758,9.72,156.34,156.3,1.27936798]
[1723360504277,0.842056,156.39,156.32,0.12549]
[1723360504492,0.842056,156.39,156.32,76.1245359]
[1723360504685,0.842056,156.39,156.37,9.84549]
[1723360504863,0.842056,156.39,156.38,1.7805544]
[1723360505059,0.842056,156.39,156.38,20.50196]
[1723360505263,0.842056,156.39,156.38,20.0]
[1723360505772,0.842056,156.39,156.37,20.0]
[1723360505978,0.842056,156.39,156.37,21.27882023]
[1723360506289,0.842056,156.39,156.36,15.8031]
[1723360506290,10.562056,156.39,156.36,15.8031]
[1723360506475,0.842056,156.39,156.36,15.8031]
[1723360506675,0.842056,156.39,156.37,0.37647]
[1723360507094,0.842056,156.39,156.37,20.0]
[1723360508283,0.842056,156.39,156.36,15.8031]
[1723360508495,10.562056,156.39,156.36,15.8031]
[1723360508795,0.842056,156.39,156.36,15.8031]
[1723360509773,9.72,156.38,156.32,22.4123]
[1723360509973,0.842056,156.39,156.33,0.37647]
[1723360510174,0.842056,156.39,156.34,0.12549]
[1723360510977,0.842056,156.39,156.35,0.12549]
[1723360511303,0.842056,156.39,156.35,1.78069401]
[1723360511511,0.842056,156.39,156.35,46.78069401]
[1723360511709,0.842056,156.39,156.36,20.0]
[1723360511884,0.842056,156.39,156.37,1.65519351]
[1723360512087,0.842056,156.39,156.36,20.0]
[1723360512290,0.842056,156.39,156.33,21.27895068]
[1723360512490,0.842056,156.39,156.34,9.72]
[1723360512705,0.842056,156.39,156.35,21.27881927]
[1723360512907,0.842056,156.39,156.36,1.27881962]
[1723360513111,0.842056,156.39,156.35,20.0]
[1723360513409,0.842056,156.39,156.34,0.25098]
[1723360513593,0.842056,156.39,156.34,45.25098]
[1723360513782,0.842056,156.39,156.35,20.0]
[1723360513988,0.842056,156.39,156.32,22.4123]
[1723360513989,9.72,156.36,156.32,15.8031]
[1723360514174,9.72,156.36,156.29,8.13491717]
[1723360514380,0.842056,156.39,156.3,3.27934671]
[1723360514604,9.72,156.38,156.31,9.72]
[1723360514808,0.842056,156.39,156.32,1.27895778]
[1723360515021,0.842056,156.39,156.33,1.27895728]
[1723360515381,0.842056,156.39,156.34,1.27897964]
[1723360515585,10.562056,156.39,156.34,1.27897964]
[1723360515811,10.562056,156.39,156.32,20.12549]
[1723360516128,9.72,156.37,156.33,0.12549]
[1723360516311,9.72,156.37,156.32,0.12549]
[1723360516517,9.72,156.37,156.32,0.25098]
[1723360516810,9.72,156.37,156.32,20.25098]
[1723360517403,9.72,156.37,156.33,1.27916752]
[1723360517617,0.842056,156.39,156.34,1.27916402]
[1723360517825,9.72,156.38,156.34,1.27916402]
[1723360518126,9.72,156.38,156.32,20.25098]
[1723360518416,9.72,156.38,156.32,0.25098]
[1723360518922,0.842056,156.39,156.33,0.12549]
[1723360519221,10.562056,156.39,156.33,0.12549]
[1723360519520,10.562056,156.39,156.33,20.12549]
[1723360520014,10.562056,156.39,156.33,21.40456011]
[1723360520603,10.562056,156.39,156.34,16.05408]
[1723360520909,10.562056,156.39,156.35,21.27899092]
[1723360521213,10.562056,156.39,156.35,27.88819092]
[1723360521406,0.842056,156.39,156.36,0.37647]
[1723360522211,0.842056,156.39,156.35,26.6092]
[1723360522412,10.562056,156.39,156.35,26.6092]
[1723360523420,0.842056,156.39,156.35,26.6092]
[1723360523723,0.842056,156.39,156.35,27.88816601]
[1723360524419,0.842056,156.39,156.35,26.6092]
[1723360526104,0.842056,156.39,156.36,1.27887621]
[1723360526299,0.842056,156.39,156.37,0.12549]
[1723360526502,0.842056,156.39,156.37,20.37647]
[1723360528104,0.842056,156.39,156.38,1.2787364]
[1723360528306,0.842056,156.39,156.38,0.12549]
[1723360528895,0.842056,156.39,156.37,20.25098]
[1723360528896,0.842056,156.39,156.37,20.0]
[1723360529213,9.72,156.38,156.35,20.0]
[1723360529818,9.72,156.38,156.35,21.27910154]
[1723360530025,9.72,156.38,156.35,20.0]
[1723360531007,9.72,156.38,156.35,21.27901869]
[1723360531213,0.842056,156.39,156.35,20.0]
[1723360531408,10.562056,156.39,156.35,20.0]
[1723360532521,0.842056,156.39,156.35,20.0]
[1723360533425,0.842056,156.39,156.36,1.27888683]
[1723360534017,0.842056,156.39,156.35,20.0]
[1723360534828,0.842056,156.39,156.36,1.27892829]
[1723360535900,0.842056,156.39,156.35,20.0]
[1723360536105,0.842056,156.39,156.36,0.37647]
[1723360536323,0.842056,156.39,156.36,45.37647]
[1723360536632,0.842056,156.39,156.37,20.0]
[1723360538113,0.842056,156.39,156.37,26.1114]
[1723360538315,0.842056,156.39,156.38,45.50196]
[1723360538638,0.842056,156.39,156.38,65.50196]
[1723360539122,0.842056,156.39,156.38,82.02306]
[1723360539329,0.842056,156.39,156.38,91.74306]
[1723360545135,0.58074794,156.39,156.38,91.74306]
[1723360545641,0.58074794,156.39,156.38,36.5211]
[1723360546510,0.58074794,156.39,156.38,37.79959305]
[1723360546707,0.58074794,156.39,156.38,16.64659]
[1723360546906,0.58074794,156.39,156.38,16.77208]
[1723360548235,0.58074794,156.39,156.38,20.0]
[1723360548936,0.58074794,156.39,156.35,20.0]
[1723360549616,0.58074794,156.39,156.37,0.12549]
[1723360549812,0.58074794,156.39,156.38,0.12549]
[1723360550037,0.58074794,156.39,156.38,45.50196]
[1723360550238,0.58074794,156.39,156.38,65.50196]
[1723360554035,0.58074794,156.39,156.38,20.37647]
[1723360555077,0.58074794,156.39,156.38,0.25098]
[1723360555356,0.58074794,156.39,156.38,0.12549]
[1723360555561,0.58074794,156.39,156.38,20.25098]
[1723360557542,0.58074794,156.39,156.32,6.67892718]
[1723360557726,9.72,156.35,156.32,6.67892718]
[1723360557929,9.72,156.35,156.3,18.6353]
[1723360558231,9.72,156.35,156.3,2.0]
[1723360559055,9.72,156.33,156.3,2.0]
[1723360560866,9.72,156.31,156.3,2.0]
[1723360562546,6.4328,156.37,156.3,2.0]
[1723360562767,9.72,156.34,156.3,2.0]
[1723360562966,9.72,156.32,156.3,2.0]
[1723360564381,9.72,156.31,156.3,2.0]
[1723360567405,9.72,156.33,156.3,2.12549]
[1723360567705,9.72,156.35,156.3,2.12549]
[1723360567916,6.4328,156.37,156.31,1.27931135]
[1723360568073,9.72,156.35,156.31,1.27931135]
[1723360569289,9.72,156.37,156.32,0.25098]
[1723360569603,9.72,156.37,156.33,0.12549]
[1723360569788,9.72,156.37,156.33,1.40457963]
[1723360569987,9.72,156.37,156.33,0.12549]
[1723360570301,9.72,156.35,156.32,0.12549]
[1723360570611,15.4839,156.38,156.32,1.78111483]
[1723360570902,9.72,156.37,156.32,1.78111483]
[1723360571107,9.72,156.37,156.32,21.78111483]
[1723360571308,9.72,156.37,156.33,45.0]
[1723360571510,9.72,156.37,156.34,21.65547868]
[1723360571714,9.72,156.37,156.34,20.37647]
[1723360572272,10.30074794,156.39,156.35,1.27901151]
[1723360572614,0.58074794,156.39,156.36,1.27894527]
[1723360572817,0.58074794,156.39,156.37,0.25098]
[1723360573113,0.58074794,156.39,156.37,1.65519261]
[1723360573789,0.58074794,156.39,156.38,0.12549]
[1723360574009,0.58074794,156.39,156.38,20.25098]
[1723360574328,0.58074794,156.39,156.38,20.50196]
[1723360574617,0.58074794,156.39,156.38,65.50196]
[1723360574925,0.58074794,156.39,156.38,66.7803488]
[1723360577011,0.44012423,156.39,156.38,88.7465488]
[1723360579429,0.44012423,156.39,156.38,15.7476]
[1723360579728,0.44012423,156.39,156.34,7.49697784]
[1723360579729,0.44012423,156.39,156.34,21.9662]
[1723360580816,0.44012423,156.39,156.35,21.27870564]
[1723360581133,0.44012423,156.39,156.35,20.0]
[1723360581429,0.44012423,156.39,156.36,1.27870342]
[1723360581637,0.44012423,156.39,156.37,0.50196]
[1723360581934,0.44012423,156.39,156.37,21.78066286]
[1723360582636,0.44012423,156.39,156.37,20.50196]
[1723360583529,0.44012423,156.39,156.38,1.27870283]
[1723360583732,0.44012423,156.39,156.38,1.52968283]
[1723360583922,0.44012423,156.39,156.38,0.25098]
[1723360584642,0.44012423,156.39,156.38,0.12549]
[1723360584843,0.44012423,156.39,156.37,20.0]
[1723360585210,0.44012423,156.39,156.35,0.12549]
[1723360585412,0.44012423,156.39,156.3,23.5551]
[1723360585609,19.29,156.38,156.3,23.5551]
[1723360586104,19.29,156.38,156.3,17.3461]
[1723360586305,19.29,156.36,156.3,17.3461]
[1723360586527,19.29,156.36,156.3,2.0]
[1723360587220,19.29,156.34,156.3,2.0]
[1723360587610,19.29,156.32,156.3,2.0]
[1723360591135,19.29,156.34,156.3,2.0]
[1723360591523,34.9032,156.36,156.3,2.0]
[1723360592965,19.29,156.34,156.3,2.0]
[1723360593743,19.29,156.36,156.31,1.27931279]
[1723360596154,19.29,156.36,156.3,2.0]
[1723360596366,19.29,156.34,156.3,2.0]
[1723360598089,19.29,156.36,156.31,1.27940576]
[1723360598855,19.29,156.36,156.3,2.0]
[1723360599056,19.29,156.34,156.3,2.0]
[1723360602660,6.3946,156.38,156.3,2.0]
[1723360602866,19.29,156.33,156.3,2.0]
[1723360605381,19.29,156.35,156.3,2.0]
[1723360605781,9.66,156.32,156.3,2.0]
[1723360609294,6.3947,156.38,156.3,2.0]
[1723360609462,9.66,156.33,156.3,2.0]
[1723360609661,19.31,156.34,156.3,2.0]
[1723360611878,19.31,156.36,156.3,2.0]
[1723360612292,19.31,156.36,156.31,1.40477777]
[1723360614965,19.31,156.36,156.31,0.25098]
[1723360615233,19.31,156.38,156.33,0.12549]
[1723360615502,19.31,156.38,156.33,0.25098]
[1723360617288,19.31,156.38,156.33,0.12549]
[1723360617469,19.31,156.38,156.3,22.0]
[1723360617671,19.31,156.38,156.31,0.37647]
[1723360617886,19.31,156.38,156.31,1.78118017]
[1723360618290,19.31,156.38,156.32,0.12549]
[1723360618993,19.31,156.38,156.32,20.0]
[1723360619198,19.31,156.38,156.31,1.53023032]
[1723360619580,19.31,156.38,156.31,0.25098]
[1723360620088,19.31,156.36,156.31,0.25098]
[1723360620309,19.31,156.36,156.32,0.12549]
[1723360620600,19.31,156.36,156.32,20.12549]
[1723360621009,19.31,156.36,156.32,20.0]
[1723360621213,19.31,156.36,156.31,20.0]
[1723360625506,0.44012423,156.39,156.31,20.0]
[1723360625686,19.31,156.37,156.31,20.0]
[1723360626791,19.31,156.37,156.32,1.27933255]
[1723360629809,9.65,156.37,156.32,1.27933255]
[1723360630400,9.65,156.37,156.31,20.0]
[1723360632815,9.65,156.37,156.32,45.50196]
[1723360633014,9.65,156.37,156.33,20.0]
[1723360633201,9.65,156.37,156.32,0.25098]
[1723360634301,9.65,156.37,156.32,1.53012793]
[1723360635616,9.65,156.37,156.32,1.27914793]
[1723360635993,9.65,156.37,156.31,20.0]
[1723360636917,9.65,156.37,156.31,21.27924095]
[1723360637298,9.65,156.37,156.31,20.0]
[1723360637612,9.65,156.36,156.32,0.25098]
[1723360637993,0.44012423,156.39,156.32,0.25098]
[1723360638189,9.65,156.36,156.32,0.25098]
[1723360639325,9.65,156.34,156.3,2.0]
[1723360639499,9.65,156.32,156.3,2.0]
[1723360642621,9.65,156.31,156.3,2.0]
[1723360647025,6.637,156.37,156.3,2.0]
[1723360647330,9.65,156.34,156.3,2.0]
[1723360647723,9.65,156.34,156.31,1.27931553]
[1723360647930,9.65,156.35,156.32,1.27929373]
[1723360648226,9.65,156.36,156.32,1.27929373]
[1723360648426,9.65,156.35,156.3,2.0]
[1723360648623,9.65,156.35,156.31,0.37647]
[1723360649206,9.65,156.35,156.31,20.37647]
[1723360650532,9.65,156.35,156.32,1.27921011]
[1723360650731,9.65,156.35,156.33,1.27918756]
[1723360651637,9.65,156.35,156.32,1.27918657]
[1723360651822,9.65,156.35,156.33,1.27918644]
[1723360652653,9.65,156.35,156.31,20.37647]
[1723360653313,9.65,156.35,156.32,1.27918642]
[1723360653533,9.65,156.35,156.33,1.27918642]
[1723360653837,9.65,156.35,156.31,20.37647]
[1723360654435,9.65,156.35,156.31,20.0]
[1723360654733,9.65,156.35,156.31,21.2793831]
[1723360655316,9.65,156.33,156.31,20.0]
[1723360656222,9.65,156.33,156.3,2.0]
[1723360658136,9.65,156.35,156.31,1.27947595]
[1723360659917,9.65,156.35,156.3,2.25098]
[1723360659918,9.65,156.35,156.3,47.25098]
[1723360660118,9.65,156.35,156.31,20.37647]
[1723360661640,9.65,156.35,156.31,20.12549]
[1723360661855,9.65,156.33,156.31,20.0]
[1723360662349,9.65,156.33,156.3,2.0]
[1723360666954,9.65,156.31,156.3,2.0]
[1723360668833,9.65,156.31,156.23,1.11260277]
[1723360669148,9.65,156.26,156.22,22.2681]
[1723360670154,9.65,156.26,156.22,15.6734]
[1723360671232,15.151,156.31,156.22,15.6734]
[1723360671425,9.65,156.27,156.22,15.6734]
[1723360671642,9.65,156.27,156.23,20.0]
[1723360671841,9.65,156.27,156.22,15.6734]
[1723360672232,9.65,156.25,156.19,13.27367179]
[1723360672538,9.65,156.25,156.2,45.12549]
[1723360672738,9.65,156.25,156.2,0.12549]
[1723360672958,9.65,156.25,156.2,0.25098]
[1723360673153,9.65,156.25,156.18,15.6734]
[1723360673337,9.65,156.21,156.18,15.6734]
[1723360673955,9.65,156.21,156.15,6.5947]
[1723360674650,9.65,156.21,156.16,20.0]
[1723360674855,9.65,156.23,156.17,1.28031181]
[1723360675050,9.65,156.23,156.18,1.28028855]
[1723360675758,9.65,156.23,156.19,0.12549]
[1723360675957,9.65,156.23,156.18,20.50196]
[1723360676969,9.65,156.25,156.18,20.50196]
[1723360679463,9.65,156.23,156.18,20.37647]
[1723360679760,9.65,156.23,156.19,1.28033776]
[1723360679966,9.65,156.23,156.18,20.37647]
[1723360683166,9.65,156.25,156.19,1.28032021]
[1723360685869,9.65,156.25,156.18,20.50196]
[1723360686063,9.65,156.25,156.19,0.12549]
[1723360686771,9.65,156.25,156.19,1.40569797]
[1723360688664,6.2369,156.29,156.21,0.12549]
[1723360688863,16.447,156.3,156.21,66.53098155]
[1723360689068,9.65,156.28,156.22,0.25098]
[1723360689452,9.65,156.26,156.21,20.12549]
[1723360689751,9.65,156.26,156.21,20.0]
[1723360692481,9.65,156.26,156.15,13.27418876]
[1723360692482,9.65,156.22,156.16,15.6321]
[1723360693054,9.65,156.24,156.16,25.2821]
[1723360693584,9.65,156.22,156.16,15.6321]
[1723360693786,9.65,156.22,156.17,0.12549]
[1723360694268,9.65,156.22,156.17,20.0]
[1723360695169,9.65,156.2,156.16,15.6321]
[1723360695376,9.65,156.2,156.12,33.41701717]
[1723360695965,9.65,156.2,156.12,36.04983194]
[1723360696357,55.047,156.24,156.12,26.39983194]
[1723360696358,9.65,156.18,156.12,26.39983194]
[1723360696577,9.65,156.18,156.13,20.0]
[1723360697460,9.65,156.2,156.13,21.28069164]
[1723360697671,55.047,156.24,156.14,10.15196]
[1723360697672,9.65,156.22,156.14,10.15196]
[1723360697977,16.447,156.24,156.15,20.0]
[1723360697978,9.65,156.2,156.15,20.0]
[1723360698174,55.047,156.24,156.14,0.25098]
[1723360698394,9.65,156.22,156.14,54.90098]
[1723360698677,9.65,156.22,156.15,20.0]
[1723360698860,9.65,156.22,156.16,45.25098]
[1723360699054,9.65,156.22,156.15,20.0]
[1723360699055,9.65,156.22,156.17,20.0]
[1723360699255,9.65,156.22,156.15,20.0]
[1723360699757,9.65,156.22,156.15,0.12549]
[1723360699973,9.65,156.22,156.15,45.25098]
[1723360700181,9.65,156.22,156.16,20.25098]
[1723360700380,9.65,156.22,156.16,20.12549]
[1723360700567,9.65,156.2,156.16,20.0]
[1723360700769,9.65,156.2,156.15,0.12549]
[1723360700962,9.65,156.2,156.15,0.37647]
[1723360701675,9.65,156.21,156.15,1.65704319]
[1723360702074,9.65,156.23,156.16,0.12549]
[1723360702269,9.65,156.25,156.19,0.12549]
[1723360702469,6.1391,156.27,156.19,76.43202282]
[1723360702470,9.65,156.27,156.19,76.43202282]
[1723360703061,9.65,156.27,156.19,20.37647]
[1723360703278,9.65,156.25,156.19,20.37647]
[1723360707378,6.4656,156.31,156.2,1.40570783]
[1723360707578,9.65,156.28,156.21,11.30650836]
[1723360707761,9.65,156.28,156.22,20.0]
[1723360708094,9.65,156.26,156.22,20.0]
[1723360708291,9.65,156.26,156.19,20.12549]
[1723360708591,9.65,156.26,156.2,0.12549]
[1723360708792,9.65,156.26,156.2,0.37647]
[1723360709159,9.65,156.26,156.2,0.25098]
[1723360709365,9.65,156.26,156.19,20.12549]
[1723360709781,9.65,156.26,156.2,0.12549]
[1723360709976,9.65,156.26,156.2,0.25098]
[1723360710271,9.65,156.22,156.18,15.9081]
[1723360710468,9.65,156.22,156.05,20.0]
[1723360710469,9.65,156.2,156.14,15.9081]
[1723360711777,9.65,156.2,156.15,21.28057219]
[1723360711978,9.65,156.2,156.15,20.0]
[1723360712690,9.65,156.22,156.15,21.28056918]
[1723360712862,9.65,156.22,156.15,20.0]
[1723360713479,9.65,156.2,156.15,20.0]
[1723360714364,9.65,156.2,156.14,16.03359]
[1723360714572,9.65,156.18,156.14,15.9081]
[1723360715886,9.65,156.2,156.15,21.28075093]
[1723360716096,9.65,156.2,156.15,20.0]
[1723360716392,9.65,156.2,156.15,21.28065953]
[1723360717305,51.4656,156.25,156.16,45.37647]
[1723360717306,9.65,156.23,156.16,45.37647]
[1723360717481,9.65,156.23,156.17,20.0]
[1723360718399,9.65,156.23,156.16,0.12549]
[1723360718777,9.65,156.23,156.16,0.37647]
[1723360719368,9.65,156.21,156.16,0.37647]
[1723360720578,9.65,156.23,156.16,1.65695886]
[1723360720971,9.65,156.21,156.16,0.37647]
[1723360721278,9.65,156.21,156.16,0.12549]
[1723360723769,9.65,156.21,156.15,21.28053218]
[1723360724396,9.65,156.21,156.15,20.0]
[1723360725193,9.65,156.19,156.15,20.0]
[1723360731609,9.65,156.17,156.15,20.0]
[1723360731809,9.65,156.17,156.1,15.463]
[1723360731810,9.65,156.17,156.12,20.0]
[1723360732003,9.65,156.17,156.1,15.463]
[1723360732207,9.65,156.17,156.11,0.37647]
[1723360732523,9.65,156.15,156.07,9.65]
[1723360732837,9.65,156.13,156.06,15.463]
[1723360733912,9.65,156.13,156.07,20.0]
[1723360738615,9.65,156.15,156.07,20.0]
[1723360738834,6.4305,156.18,156.09,0.12549]
[1723360739143,9.65,156.16,156.09,20.25098]
[1723360739341,9.65,156.16,156.1,0.25098]
[1723360739533,6.4305,156.18,156.1,11.18196639]
[1723360739534,9.65,156.18,156.1,11.18196639]
[1723360739718,9.65,156.18,156.11,65.25098]
[1723360739918,9.65,156.18,156.12,1.40630176]
[1723360740346,9.65,156.2,156.12,11.05631288]
[1723360740526,9.65,156.2,156.13,20.25098]
[1723360740735,9.65,156.22,156.14,10.93065868]
[1723360740918,9.65,156.22,156.15,20.0]
[1723360741536,9.65,156.22,156.15,21.28067968]
[1723360741744,9.65,156.22,156.15,20.0]
[1723360742641,9.65,156.2,156.15,20.0]
[1723360742839,9.65,156.2,156.13,20.25098]
[1723360743944,9.65,156.18,156.13,20.0]
[1723360744141,9.65,156.18,156.12,20.12549]
[1723360744744,9.65,156.2,156.12,29.77549]
[1723360746524,9.65,156.2,156.12,20.12549]
[1723360746723,9.65,156.16,156.12,20.0]
[1723360747223,9.65,156.16,156.11,15.463]
[1723360748756,9.65,156.16,156.12,20.0]
[1723360750027,9.65,156.18,156.13,1.2808456]
[1723360750232,9.65,156.18,156.12,21.28084344]
[1723360750633,9.65,156.18,156.12,20.0]
[1723360751638,9.65,156.16,156.12,20.0]
[1723360752043,9.65,156.16,156.08,20.0]
[1723360752244,9.65,156.16,156.09,0.25098]
[1723360753152,9.65,156.14,156.08,20.0]
[1723360754136,9.65,156.16,156.08,20.0]
[1723360754332,9.65,156.16,156.09,0.25098]
[1723360754542,25.8704,156.18,156.1,0.12549]
[1723360754771,25.8704,156.18,156.1,20.0]
[1723360754937,9.65,156.16,156.1,20.0]
[1723360755341,9.65,156.18,156.11,1.40643388]
[1723360755644,9.65,156.18,156.12,0.12549]
[1723360755852,16.2204,156.22,156.12,1.53175122]
[1723360755853,9.65,156.2,156.12,1.53175122]
[1723360756052,9.65,156.23,156.15,9.65]
[1723360756239,9.65,156.21,156.16,20.0]
[1723360757359,9.65,156.21,156.14,20.0]
[1723360757952,9.65,156.19,156.14,20.0]
[1723360761641,9.65,156.21,156.15,1.28080101]
[1723360762668,9.65,156.21,156.14,21.28064738]
[1723360762848,9.65,156.21,156.14,20.0]
[1723360763048,9.65,156.19,156.14,20.0]
[1723360765251,9.65,156.21,156.15,0.37647]
[1723360766364,9.65,156.23,156.15,10.02647]
[1723360766546,9.65,156.23,156.15,11.30693172]
[1723360766868,9.65,156.23,156.16,20.0]
[1723360767376,9.65,156.21,156.16,20.0]
[1723360767584,9.65,156.21,156.15,0.37647]
[1723360768270,9.65,156.21,156.14,20.0]
[1723360768777,9.65,156.21,156.15,0.12549]
[1723360769360,9.65,156.21,156.14,20.0]
[1723360769641,19.35,156.22,156.14,20.0]
[1723360769846,19.35,156.22,156.14,21.28069103]
[1723360770651,19.35,156.22,156.14,20.0]
[1723360770854,19.35,156.22,156.14,21.28065859]
[1723360771068,19.35,156.22,156.14,20.0]
[1723360781779,19.35,156.2,156.14,20.0]
[1723360782978,19.35,156.16,156.09,15.2919]
[1723360783558,19.35,156.16,156.09,16.57297452]
[1723360783877,19.35,156.18,156.09,16.57297452]
[1723360784255,19.35,156.18,156.1,20.0]
[1723360784456,19.35,156.18,156.11,1.28095726]
[1723360784674,19.35,156.2,156.12,1.28089987]
[1723360785675,19.35,156.2,156.11,46.53180584]
[1723360785882,19.35,156.2,156.12,20.25098]
[1723360786265,19.35,156.2,156.12,20.0]
[1723360786458,19.35,156.2,156.11,0.12549]
[1723360786665,19.35,156.2,156.11,0.37647]
[1723360789682,9.68,156.19,156.11,10.05647]
[1723360789884,9.68,156.19,156.12,20.0]
[1723360793674,9.68,156.19,156.12,21.28082967]
[1723360793985,9.68,156.21,156.12,21.28082967]
[1723360794180,9.68,156.21,156.12,20.0]